lending/lending_fUSD_20260110
["ID","MTS","AMOUNT","RATE_DAILY","PERIOD"]
[401219596,1768055441847,-500.0,0.00017973,2]
[401219599,1768055441857,-500.0,0.00017973,2]
[401219601,1768055441867,-500.0,0.00017973,2]
[401219603,1768055441878,-500.0,0.00017973,2]
[401219604,1768055441890,-500.0,0.00017973,2]
[401219606,1768055441900,-500.0,0.00017973,2]
[401219609,1768055441910,-33.18332215,0.00017973,2]
[401219611,1768055441923,-466.81667785,0.00017973,2]
[401219613,1768055441932,-500.0,0.00017973,2]
[401219615,1768055441941,-76.73798063,0.00017973,2]
[401219616,1768055441952,-423.26201937,0.00017973,2]
[401219617,1768055441961,-500.0,0.00017973,2]
[401219618,1768055441970,-500.0,0.00017973,2]
[401219619,1768055441979,-500.0,0.00017973,2]
[401219620,1768055441987,-500.0,0.00017973,2]
[401219621,1768055441996,-500.0,0.00017973,2]
[401219622,1768055442005,-500.0,0.00017973,2]
[401219623,1768055442014,-500.0,0.00017973,2]
[401219624,1768055442023,-500.0,0.00017973,2]
[401219625,1768055442032,-26.5429259,0.00017973,2]
[401219626,1768055442043,-473.4570741,0.00017973,2]
[401219627,1768055442052,-500.0,0.00017973,2]
[401219629,1768055442061,-500.0,0.00017973,2]
[401219631,1768055442071,-500.0,0.00017973,2]
[401219633,1768055442080,-268.65,0.00017973,2]
[401219635,1768055442089,-3040.34756039,0.00017999,2]
[401219637,1768055442100,-306.069,0.00017999,2]
[401219640,1768055442112,-926.6702252,0.00017999,2]
[401219642,1768055442123,-6443.11814217,0.00017999,2]
[401219645,1768055442143,-847.57037688,0.00017999,2]
[401219647,1768055442152,-300.0,0.00017999,2]
[401219649,1768055442162,-4006492.72930521,0.00018,2]
[401219651,1768055442172,-836641.95441156,0.00018,2]
[401219736,1768055443742,-2348.81410111,0.00014448,2]
[401219737,1768055443787,-2045.39356299,0.00014448,2]
[401219738,1768055443799,-834.90360017,0.00014448,2]
[401219739,1768055443811,-1218.10437464,0.00014448,2]
[401219740,1768055443823,-257.89441542,0.00014448,2]
[401219741,1768055443835,-5323.6294294,0.00014448,2]
[401219742,1768055443846,-502.99139351,0.00014448,2]
[401219743,1768055443857,-11877.27714,0.00014448,2]
[401219744,1768055443892,-2287.30477774,0.00014448,2]
[401219745,1768055444496,163.67407124,0.00014348,2]
[401219746,1768055444856,-331492.97344287,0.00014448,2]
[401219747,1768055444919,-637.30701203,0.00014448,2]
[401219748,1768055444930,-1035.94218875,0.00014448,2]
[401219757,1768055445225,-1014.09508778,0.00014448,2]
[401219758,1768055445273,-633.92371775,0.00014448,2]
[401219759,1768055445284,-172025.11996282,0.00014448,2]
[401219760,1768055445299,-2433.80048799,0.00014448,2]
[401219761,1768055445368,-451.20066245,0.00014448,2]
[401219771,1768055445780,-292.50000001,0.00014448,2]
[401219772,1768055445792,-1138.75,0.00014448,2]
[401219773,1768055445849,-5413.60522956,0.00014448,2]
[401219774,1768055445907,-698.3382,0.00014448,2]
[401219775,1768055463954,488.62897081,0.00014447,2]
[401219776,1768055464037,500.0,0.00014447,2]
[401219777,1768055464118,500.0,0.00014447,2]
[401219778,1768055464202,500.0,0.00014447,2]
[401219779,1768055464325,500.0,0.00014447,2]
[401219780,1768055464489,500.0,0.00014447,2]
[401219781,1768055464578,650.0,0.00014447,2]
[401219782,1768055466573,250.0,0.00014447,2]
[401219783,1768055467500,300.0,0.00014447,2]
[401219784,1768055489269,5484.03288671,0.00014348,2]
[401219785,1768055489335,121.29510012,0.00014348,2]
[401219786,1768055495863,500.0,0.00014447,2]
[401219787,1768055518736,500.0,0.00014447,2]
[401219788,1768055519067,500.0,0.00014447,2]
[401219789,1768055519391,500.0,0.00014447,2]
[401219790,1768055519901,500.0,0.00014447,2]
[401219791,1768055520224,500.0,0.00014447,2]
[401219792,1768055531026,300.0,0.00014447,2]
[401219793,1768055560618,350.0,0.00014447,2]
[401219794,1768055578889,-7214335.43382318,0.00043375,7]
[401219795,1768055578927,-1785664.56617682,0.00043375,7]
[401219796,1768055582101,150.0,0.00014447,2]
[401219797,1768055582272,300.0,0.00014447,2]
[401219798,1768055591820,-8036874.35077002,0.00043375,7]
[401219799,1768055591857,-963125.64922998,0.00043375,7]
[401219800,1768055597459,1200.0,0.00014447,2]
[401219801,1768055604850,-176.0,0.00043375,30]
[401219802,1768055604891,-184.0,0.00043375,30]
[401219803,1768055604928,-280.0,0.00043375,30]
[401219804,1768055604973,-1000.0,0.00043375,120]
[401219805,1768055605010,-280.0,0.00043375,120]
[401219806,1768055605047,-1000.0,0.00043375,60]
[401219807,1768055605087,-180.0,0.00043375,30]
[401219808,1768055605140,-180.0,0.00043375,120]
[401219809,1768055605182,-1000.0,0.00043375,30]
[401219810,1768055605219,-1000.0,0.00043375,60]
[401219811,1768055605256,-1000.0,0.00043375,30]
[401219812,1768055605295,-1000.0,0.00043375,30]
[401219813,1768055605335,-1000.0,0.00043375,60]
[401219814,1768055605382,-1000.0,0.00043375,60]
[401219815,1768055605421,-150.0,0.00043375,30]
[401219816,1768055605458,-150.0,0.00043375,30]
[401219817,1768055605492,-200.0,0.00043375,30]
[401219818,1768055605526,-1000.0,0.00043375,30]
[401219819,1768055605559,-895.7564388,0.00043375,30]
[401219820,1768055605590,-1000.0,0.00043375,60]
[401219821,1768055605624,-1000.0,0.00043375,60]
[401219822,1768055605655,-1000.0,0.00043375,30]
[401219823,1768055605688,-50000.0,0.00043375,30]
[401219824,1768055605722,-50000.0,0.00043375,31]
[401219825,1768055605752,-1000.0,0.00043375,30]
[401219826,1768055605786,-50000.0,0.00043375,32]
[401219827,1768055605820,-1000.0,0.00043375,30]
[401219828,1768055605857,-50000.0,0.00043375,33]
[401219829,1768055605893,-50000.0,0.00043375,34]
[401219830,1768055605934,-50000.0,0.00043375,35]
[401219831,1768055605971,-50000.0,0.00043375,36]
[401219832,1768055606006,-50000.0,0.00043375,37]
[401219833,1768055606042,-1000.0,0.00043375,30]
[401219834,1768055606081,-50000.0,0.00043375,38]
[401219835,1768055606122,-50000.0,0.00043375,39]
[401219836,1768055606617,-1623.09481235,0.00043375,120]
[401219837,1768055606655,-1031.45449287,0.00043375,30]
[401219838,1768055606688,-1058.37197869,0.00043375,30]
[401219839,1768055606720,-210.72885,0.00043375,60]
[401219840,1768055606752,-210.72885,0.00043375,60]
[401219841,1768055606785,-2649.65131018,0.00043375,120]
[401219842,1768055606816,-512.89819875,0.00043375,30]
[401219843,1768055606849,-512.89819875,0.00043375,30]
[401219844,1768055606880,-512.89819875,0.00043375,30]
[401219845,1768055606916,-512.89819875,0.00043375,30]
[401219846,1768055606948,-512.89819875,0.00043375,30]
[401219847,1768055606979,-512.89819875,0.00043375,30]
[401219848,1768055607013,-512.89819875,0.00043375,30]
[401219849,1768055607047,-512.89819875,0.00043375,30]
[401219850,1768055607080,-512.89819875,0.00043375,30]
[401219851,1768055607113,-512.89819874,0.00043375,30]
[401219852,1768055607147,-512.89819874,0.00043375,30]
[401219853,1768055607180,-512.89819874,0.00043375,30]
[401219854,1768055607216,-512.89819874,0.00043375,30]
[401219855,1768055607248,-512.89819874,0.00043375,30]
[401219856,1768055607280,-512.89819874,0.00043375,30]
[401219857,1768055607317,-512.89819874,0.00043375,30]
[401219858,1768055607357,-512.89819874,0.00043375,30]
[401219859,1768055607399,-512.89819874,0.00043375,30]
[401219860,1768055607439,-512.89819874,0.00043375,30]
[401219861,1768055607478,-512.89819874,0.00043375,30]
[401219862,1768055607518,-1750.37460454,0.00043375,90]
[401219863,1768055607572,-542.50726559,0.00043375,30]
[401219864,1768055607615,-405.62945747,0.00043375,30]
[401219865,1768055607657,-503.87483943,0.00043375,91]
[401219866,1768055607696,-1225.56819415,0.00043375,120]
[401219867,1768055607731,-930.38953721,0.00043375,30]
[401219868,1768055607763,-327.84478749,0.00043375,30]
[401219869,1768055607797,-530.94631828,0.00043375,120]
[401219870,1768055607830,-587.05416816,0.00043375,120]
[401219871,1768055607863,-312.83607338,0.00043375,120]
[401219872,1768055607896,-3000.0,0.00043375,30]
[401219873,1768055607928,-784.95008895,0.00043375,30]
[401219874,1768055607961,-228.84937973,0.00043375,120]
[401219875,1768055607992,-334.06724466,0.00043375,120]
[401219876,1768055608024,-1922.46687951,0.00043375,120]
[401219877,1768055608057,-1870.9755309,0.00043375,30]
[401219878,1768055608098,-1453.80560666,0.00043375,30]
[401219879,1768055608134,-2165.72245846,0.00043375,30]
[401219880,1768055608170,-1476.83795846,0.00043375,30]
[401219881,1768055608208,-439.8312435,0.00043375,120]
[401219882,1768055608246,-204.98141683,0.00043375,120]
[401219883,1768055608286,-241.2658248,0.00043375,30]
[401219884,1768055608334,-589.37208003,0.00043375,120]
[401219885,1768055608382,-911.10537075,0.00043375,30]
[401219886,1768055608418,-472.24232325,0.00043375,30]
[401219887,1768055608453,-2567.25727021,0.00043375,120]
[401219888,1768055608486,-920.00991079,0.00043375,30]
[401219889,1768055608521,-739.77330632,0.00043375,30]
[401219890,1768055608555,-486.99445126,0.00043375,90]
[401219891,1768055608595,-883.18080648,0.00043375,120]
[401219892,1768055608633,-237.43290254,0.00043375,120]
[401219893,1768055608666,-990.9811817,0.00043375,30]
[401219894,1768055608699,-368.91179965,0.00043375,120]
[401219895,1768055608731,-430.58885076,0.00043375,60]
[401219896,1768055608763,-231.61054478,0.00043375,120]
[401219897,1768055608796,-767.41873698,0.00043375,120]
[401219898,1768055608833,-200.60750931,0.00043375,30]
[401219899,1768055608865,-221.12082918,0.00043375,30]
[401219900,1768055608899,-553.0961605,0.00043375,60]
[401219901,1768055608932,-1024.06236455,0.00043375,30]
[401219902,1768055608967,-304.68346499,0.00043375,120]
[401219903,1768055609003,-1405.60867366,0.00043375,120]
[401219904,1768055609038,-192.70862668,0.00043375,120]
[401219905,1768055609075,-293.72778799,0.00043375,120]
[401219906,1768055609111,-200.16210692,0.00043375,30]
[401219907,1768055609153,-191.05996183,0.00043375,120]
[401219908,1768055609187,-374.15140167,0.00043375,30]
[401219909,1768055609221,-220.30856004,0.00043375,30]
[401219910,1768055609256,-441.16424088,0.00043375,120]
[401219911,1768055609292,-338.90371829,0.00043375,30]
[401219912,1768055609335,-337.94183661,0.00043375,120]
[401219913,1768055609377,-530.15118545,0.00043375,30]
[401219914,1768055609418,-327.42527871,0.00043375,120]
[401219915,1768055609455,-1077.94748109,0.00043375,30]
[401219916,1768055609491,-914.42735832,0.00043375,120]
[401219917,1768055609527,-928.94835394,0.00043375,120]
[401219918,1768055609564,-175.20925139,0.00043375,120]
[401219919,1768055609600,-318.29447205,0.00043375,120]
[401219920,1768055609636,-198.97467888,0.00043375,120]
[401219921,1768055609672,-671.25160152,0.00043375,120]
[401219922,1768055609705,-286.22555039,0.00043375,30]
[401219923,1768055609738,-270.35107186,0.00043375,120]
[401219924,1768055609771,-182.53906838,0.00043375,30]
[401219925,1768055609803,-1344.39122709,0.00043375,120]
[401219926,1768055609835,-997.0,0.00043375,30]
[401219927,1768055609867,-918.86656248,0.00043375,120]
[401219928,1768055609900,-264.79173827,0.00043375,120]
[401219929,1768055609931,-404.96543131,0.00043375,120]
[401219930,1768055609976,-414.25865592,0.00043375,120]
[401219931,1768055610007,-235.94874143,0.00043375,30]
[401219932,1768055610039,-941.31428977,0.00043375,30]
[401219933,1768055610070,-402.98169515,0.00043375,30]
[401219934,1768055610102,-239.76814603,0.00043375,120]
[401219935,1768055610133,-342.21686673,0.00043375,120]
[401219936,1768055610167,-158.21701997,0.00043375,60]
[401219937,1768055610199,-267.47271948,0.00043375,120]
[401219938,1768055610233,-1168.40306684,0.00043375,120]
[401219939,1768055610268,-557.66809521,0.00043375,120]
[401219940,1768055610305,-2600.18509416,0.00043375,120]
[401219941,1768055610341,-1443.55238704,0.00043375,33]
[401219942,1768055610377,-387.40806149,0.00043375,120]
[401219943,1768055610413,-244.49059583,0.00043375,120]
[401219944,1768055610449,-772.08947821,0.00043375,120]
[401219945,1768055610486,-226.04442746,0.00043375,30]
[401219946,1768055610521,-4118.77527528,0.00043375,120]
[401219947,1768055610560,-283.77150994,0.00043375,30]
[401219948,1768055610594,-559.69904284,0.00043375,30]
[401219949,1768055610626,-216.55308756,0.00043375,31]
[401219950,1768055610657,-272.70067564,0.00043375,120]
[401219951,1768055610689,-1484.57905064,0.00043375,120]
[401219952,1768055610720,-3295.12230021,0.00043375,30]
[401219953,1768055610752,-962.77383636,0.00043375,30]
[401219954,1768055610785,-481.41073535,0.00043375,30]
[401219955,1768055610819,-915.45161509,0.00043375,30]
[401219956,1768055610857,-788.05635356,0.00043375,90]
[401219957,1768055610889,-805.47454063,0.00043375,120]
[401219958,1768055610920,-577.3407096,0.00043375,120]
[401219959,1768055610951,-180.74609461,0.00043375,120]
[401219960,1768055610987,-347.21900838,0.00043375,120]
[401219961,1768055611018,-808.27801225,0.00043375,120]
[401219962,1768055611050,-1104.48216587,0.00043375,30]
[401219963,1768055611081,-3188.40877265,0.00043375,30]
[401219964,1768055611117,-196.89606396,0.00043375,120]
[401219965,1768055611151,-2019.904761,0.00043375,30]
[401219966,1768055611186,-193.99036073,0.00043375,120]
[401219967,1768055611221,-274.71294009,0.00043375,120]
[401219968,1768055611258,-482.42647803,0.00043375,60]
[401219969,1768055611292,-1200.6519788,0.00043375,120]
[401219970,1768055611328,-186.3740627,0.00043375,120]
[401219971,1768055611362,-334.76434607,0.00043375,120]
[401219972,1768055611396,-367.93289916,0.00043375,30]
[401219973,1768055611443,-494.39432671,0.00043375,30]
[401219974,1768055611480,-309.67813116,0.00043375,120]
[401219975,1768055611516,-659.10573002,0.00043375,120]
[401219976,1768055611553,-1061.96941953,0.00043375,120]
[401219977,1768055611589,-837.21898667,0.00043375,30]
[401219978,1768055611626,-752.91713879,0.00043375,30]
[401219979,1768055611661,-21000.0,0.00043375,90]
[401219980,1768055611694,-1681.40655718,0.00043375,60]
[401219981,1768055611726,-445.0,0.00043375,30]
[401219982,1768055611760,-2675.979714,0.00043375,120]
[401219983,1768055611792,-191.01,0.00043375,30]
[401219984,1768055611825,-331523.4,0.00043375,120]
[401219985,1768055611858,-115061.46149711,0.00043375,30]
[401219986,1768055611890,-25000.0,0.00043375,30]
[401219987,1768055611922,-252662.27,0.00043375,30]
[401219988,1768055611959,-1144.52100463,0.00043375,30]
[401219989,1768055611992,-500.0,0.00043375,120]
[401219990,1768055612025,-500.0,0.00043375,120]
[401219991,1768055612059,-500.0,0.00043375,120]
[401219992,1768055612092,-500.0,0.00043375,120]
[401219993,1768055612125,-463.73461201,0.00043375,120]
[401219994,1768055612159,-500.0,0.00043375,120]
[401219995,1768055612192,-500.0,0.00043375,120]
[401219996,1768055612227,-500.0,0.00043375,120]
[401219997,1768055612262,-500.0,0.00043375,120]
[401219998,1768055612301,-500.0,0.00043375,120]
[401219999,1768055612343,-500.0,0.00043375,120]
[401220000,1768055612380,-500.0,0.00043375,120]
[401220001,1768055612418,-500.0,0.00043375,120]
[401220002,1768055612458,-500.0,0.00043375,120]
[401220003,1768055612493,-500.0,0.00043375,120]
[401220004,1768055612529,-273.01021868,0.00043375,120]
[401220005,1768055612564,-500.0,0.00043375,120]
[401220006,1768055612598,-500.0,0.00043375,120]
[401220007,1768055612632,-500.0,0.00043375,120]
[401220008,1768055612665,-500.0,0.00043375,120]
[401220009,1768055612698,-500.0,0.00043375,120]
[401220010,1768055612735,-500.0,0.00043375,120]
[401220011,1768055612770,-500.0,0.00043375,120]
[401220012,1768055612802,-500.0,0.00043375,120]
[401220013,1768055612837,-500.0,0.00043375,120]
[401220014,1768055612870,-500.0,0.00043375,120]
[401220015,1768055612906,-277.28690471,0.00043375,120]
[401220016,1768055612938,-500.0,0.00043375,30]
[401220017,1768055612977,-1976.73102,0.00043375,120]
[401220018,1768055614433,-500.0,0.00043375,120]
[401220019,1768055614482,-500.0,0.00043375,120]
[401220020,1768055614522,-500.0,0.00043375,120]
[401220021,1768055614558,-500.0,0.00043375,120]
[401220022,1768055614591,-500.0,0.00043375,120]
[401220023,1768055614624,-500.0,0.00043375,120]
[401220024,1768055614655,-500.0,0.00043375,120]
[401220025,1768055614686,-370.99694165,0.00043375,120]
[401220026,1768055614717,-2000.0,0.00043375,120]
[401220027,1768055614747,-1366.38,0.00043375,120]
[401220028,1768055614777,-2593.16473245,0.00043375,120]
[401220029,1768055614808,-289.0,0.00043375,120]
[401220030,1768055614839,-3663.71664737,0.00043375,120]
[401220031,1768055614870,-2942.488346,0.00043375,120]
[401220032,1768055614902,-176.9515731,0.00043375,120]
[401220033,1768055614936,-400.0,0.00043375,30]
[401220034,1768055614968,-400.0,0.00043375,30]
[401220035,1768055614998,-400.0,0.00043375,30]
[401220036,1768055615030,-400.0,0.00043375,30]
[401220037,1768055615061,-400.0,0.00043375,30]
[401220038,1768055615092,-400.0,0.00043375,30]
[401220039,1768055615123,-400.0,0.00043375,30]
[401220040,1768055615155,-400.0,0.00043375,30]
[401220041,1768055615187,-400.0,0.00043375,30]
[401220042,1768055615219,-400.0,0.00043375,30]
[401220043,1768055615252,-400.0,0.00043375,30]
[401220044,1768055615288,-400.0,0.00043375,30]
[401220045,1768055615329,-400.0,0.00043375,30]
[401220046,1768055615372,-400.0,0.00043375,30]
[401220047,1768055615413,-400.0,0.00043375,30]
[401220048,1768055615454,-400.0,0.00043375,30]
[401220049,1768055615493,-408.00105026,0.00043375,30]
[401220050,1768055615534,-500.0,0.00043375,120]
[401220051,1768055615575,-1001776.02822029,0.00043375,120]
[401220052,1768055615622,-212.0,0.00043375,30]
[401220053,1768055615662,-172.07169,0.00043375,60]
[401220054,1768055615701,-213.23215406,0.00043375,120]
[401220055,1768055615740,-187.62458114,0.00043375,120]
[401220056,1768055615781,-500.0,0.00043375,120]
[401220057,1768055615825,-641.42430507,0.00043375,120]
[401220058,1768055615866,-178.50799456,0.00043375,120]
[401220059,1768055615907,-1091.0,0.00043375,120]
[401220060,1768055615947,-2058.42,0.00043375,120]
[401220061,1768055615988,-1100.0,0.00043375,120]
[401220062,1768055616030,-1000.0,0.00043375,120]
[401220063,1768055616070,-1000.0,0.00043375,120]
[401220064,1768055616111,-491.7225578,0.00043375,120]
[401220065,1768055616149,-169.4252334,0.00043375,30]
[401220066,1768055616185,-2471.35780144,0.00043375,120]
[401220067,1768055616225,-160.39274457,0.00043375,60]
[401220068,1768055616265,-971.85711626,0.00043375,120]
[401220069,1768055616312,-361.56275747,0.00043375,120]
[401220070,1768055616358,-2000.0,0.00043375,120]
[401220071,1768055616400,-152.43838266,0.00043375,30]
[401220072,1768055616440,-39723.32900524,0.00043375,30]
[401220073,1768055616480,-1346.69974043,0.00043375,120]
[401220074,1768055616524,-1562.38403993,0.00043375,120]
[401220075,1768055616564,-711.22412465,0.00043375,30]
[401220076,1768055616611,-397.0,0.00043375,120]
[401220077,1768055616657,-2000.0,0.00043375,120]
[401220078,1768055616702,-10578.780673,0.00043375,120]
[401220079,1768055616744,-12110.4,0.00043375,30]
[401220080,1768055616787,-1532.9913352,0.00043375,120]
[401220081,1768055616829,-309719.4941287,0.00043375,30]
[401220082,1768055616975,-331.99999901,0.00043375,120]
[401220083,1768055617017,-899.57299941,0.00043375,120]
[401220084,1768055617055,-881.79193089,0.00043375,120]
[401220085,1768055617092,-1504.995999,0.00043375,120]
[401220086,1768055617130,-50000.0,0.00043375,40]
[401220087,1768055617169,-50000.0,0.00043375,41]
[401220088,1768055617207,-50000.0,0.00043375,42]
[401220089,1768055617246,-50000.0,0.00043375,43]
[401220090,1768055617308,-50000.0,0.00043375,44]
[401220091,1768055617381,-50000.0,0.00043375,45]
[401220092,1768055617449,-50000.0,0.00043375,46]
[401220093,1768055617521,-50000.0,0.00043375,47]
[401220094,1768055617594,-50000.0,0.00043375,48]
[401220095,1768055617641,-50000.0,0.00043375,49]
[401220096,1768055617680,-342.57567666,0.00043375,60]
[401220097,1768055617718,-968.32293947,0.00043375,60]
[401220098,1768055617753,-2336.99301102,0.00043375,60]
[401220099,1768055617788,-43419.53,0.00043375,120]
[401220100,1768055617822,-7316.9,0.00043375,30]
[401220101,1768055617855,-20404.35217283,0.00043375,120]
[401220102,1768055617888,-267.64030538,0.00043375,30]
[401220103,1768055617920,-200.0,0.00043375,30]
[401220104,1768055617952,-200.0,0.00043375,30]
[401220105,1768055617985,-200.0,0.00043375,30]
[401220106,1768055618018,-200.0,0.00043375,30]
[401220107,1768055618050,-200.0,0.00043375,30]
[401220108,1768055618090,-200.0,0.00043375,30]
[401220109,1768055618161,-200.0,0.00043375,30]
[401220110,1768055618258,-200.0,0.00043375,30]
[401220111,1768055618341,-200.0,0.00043375,30]
[401220112,1768055618411,-200.0,0.00043375,30]
[401220113,1768055618452,-200.0,0.00043375,30]
[401220114,1768055618492,-200.0,0.00043375,30]
[401220115,1768055618531,-200.0,0.00043375,30]
[401220116,1768055618571,-200.0,0.00043375,30]
[401220117,1768055618609,-200.0,0.00043375,30]
[401220118,1768055618646,-200.0,0.00043375,30]
[401220119,1768055618681,-200.0,0.00043375,30]
[401220120,1768055618715,-200.0,0.00043375,30]
[401220121,1768055618749,-200.0,0.00043375,30]
[401220122,1768055618783,-200.0,0.00043375,30]
[401220123,1768055618818,-200.0,0.00043375,30]
[401220124,1768055618858,-200.0,0.00043375,30]
[401220125,1768055618893,-423.91,0.00043375,30]
[401220126,1768055618927,-387.54,0.00043375,30]
[401220127,1768055618961,-693.0,0.00043375,30]
[401220128,1768055618996,-230.37,0.00043375,120]
[401220129,1768055619034,-2080.6,0.00043375,75]
[401220130,1768055619070,-50000.0,0.00043375,60]
[401220131,1768055619106,-1944.0,0.00043375,120]
[401220132,1768055619143,-113662.92,0.00043375,30]
[401220133,1768055619180,-344.2542883,0.00043375,30]
[401220134,1768055619217,-42707.8674768,0.00043375,120]
[401220135,1768055619253,-28407.34238845,0.00043375,120]
[401220136,1768055619290,-19962.55915341,0.00043375,120]
[401220137,1768055619329,-200000.0,0.00043375,120]
[401220138,1768055619369,-18286.47348178,0.00043375,120]
[401220139,1768055619409,-7705.77084922,0.00043375,90]
[401220140,1768055619450,-10525.0,0.00043375,120]
[401220141,1768055619492,-500.000001,0.00043375,120]
[401220142,1768055619531,-1029.10659895,0.00043375,120]
[401220143,1768055619569,-10000.0,0.00043375,30]
[401220144,1768055619607,-20000.0,0.00043375,120]
[401220145,1768055619643,-1800.0,0.00043375,31]
[401220146,1768055619678,-270.84853485,0.00043375,120]
[401220147,1768055619712,-22530.22704562,0.00043375,30]
[401220148,1768055619748,-5050.0,0.00043375,33]
[401220149,1768055619781,-519.35003495,0.00043375,120]
[401220150,1768055619815,-157.9362758,0.00043375,120]
[401220151,1768055619866,-509.93866058,0.00043375,30]
[401220152,1768055619929,-30386.44033828,0.00043375,120]
[401220153,1768055619990,-183.17870795,0.00043375,30]
[401220154,1768055620050,-128159.56105454,0.00043375,120]
[401220155,1768055620112,-30000.0,0.00043375,90]
[401220156,1768055620173,-160347.11205641,0.00043375,30]
[401220157,1768055620224,-36170.5036916,0.00043375,30]
[401220158,1768055620256,-3405.5571538,0.00043375,30]
[401220159,1768055620290,-22237.98444023,0.00043375,60]
[401220160,1768055620326,-9945.46084492,0.00043375,60]
[401220161,1768055620366,-50000.0,0.00043375,50]
[401220162,1768055620404,-1497.58546885,0.00043375,120]
[401220163,1768055620439,-1179.06613865,0.00043375,120]
[401220164,1768055620472,-1724.35542793,0.00043375,120]
[401220165,1768055620504,-1092.25825338,0.00043375,30]
[401220166,1768055620536,-1577.55438743,0.00043375,60]
[401220167,1768055620569,-186.0,0.00043375,30]
[401220168,1768055620600,-208.16968,0.00043375,60]
[401220169,1768055620630,-500.0,0.00043375,120]
[401220170,1768055620661,-500.0,0.00043375,120]
[401220171,1768055620692,-500.0,0.00043375,120]
[401220172,1768055620723,-500.0,0.00043375,120]
[401220173,1768055620753,-500.0,0.00043375,120]
[401220174,1768055620784,-500.0,0.00043375,120]
[401220175,1768055620816,-500.0,0.00043375,120]
[401220176,1768055620847,-500.0,0.00043375,120]
[401220177,1768055621023,-500.0,0.00043375,120]
[401220178,1768055621057,-500.0,0.00043375,120]
[401220179,1768055621088,-500.0,0.00043375,120]
[401220180,1768055621120,-500.0,0.00043375,120]
[401220181,1768055621153,-500.0,0.00043375,120]
[401220182,1768055621185,-500.0,0.00043375,120]
[401220183,1768055621217,-500.0,0.00043375,120]
[401220184,1768055621250,-500.0,0.00043375,120]
[401220185,1768055621283,-500.0,0.00043375,120]
[401220186,1768055621321,-500.0,0.00043375,120]
[401220187,1768055621357,-500.0,0.00043375,120]
[401220188,1768055621395,-500.0,0.00043375,120]
[401220189,1768055621432,-500.0,0.00043375,120]
[401220190,1768055621468,-500.0,0.00043375,120]
[401220191,1768055621506,-500.0,0.00043375,120]
[401220192,1768055621542,-219.22505256,0.00043375,120]
[401220193,1768055621579,-2284.0,0.00043375,120]
[401220194,1768055621615,-217.41521575,0.00043375,120]
[401220195,1768055621649,-500.0,0.00043375,120]
[401220196,1768055621681,-617.42788937,0.00043375,120]
[401220197,1768055621712,-1999.999995,0.00043375,120]
[401220198,1768055621743,-1035.8628379,0.00043375,120]
[401220199,1768055621773,-188.40056936,0.00043375,60]
[401220200,1768055621804,-469.9759585,0.00043375,120]
[401220201,1768055621835,-2082.60383168,0.00043375,30]
[401220202,1768055621866,-165.80490693,0.00043375,30]
[401220203,1768055621898,-191.62389103,0.00043375,120]
[401220204,1768055621929,-221.0,0.00043375,120]
[401220205,1768055621959,-179.54350472,0.00043375,30]
[401220206,1768055621992,-165.88,0.00043375,30]
[401220207,1768055622024,-28943.0,0.00043375,30]
[401220208,1768055622054,-500.0,0.00043375,30]
[401220209,1768055622090,-517.8897344,0.00043375,30]
[401220210,1768055622122,-500.0,0.00043375,120]
[401220211,1768055622153,-500.0,0.00043375,120]
[401220212,1768055622186,-500.0,0.00043375,120]
[401220213,1768055622221,-500.0,0.00043375,120]
[401220214,1768055622253,-500.0,0.00043375,120]
[401220215,1768055622285,-500.0,0.00043375,120]
[401220216,1768055622320,-538.12227307,0.00043375,120]
[401220217,1768055622353,-1848.98,0.00043375,120]
[401220218,1768055622387,-1848.98,0.00043375,120]
[401220219,1768055622420,-1848.98,0.00043375,120]